[Event "*** Titled Tuesday Blitz"]
[Site "Chess.com"]
[Date "2018.08.07"]
[Round "3"]
[White "Er_is_geen_hoop_meer"]
[Black "GMHess"]
[Result "0-1"]
[WhiteElo "2447"]
[BlackElo "2628"]
[TimeControl "180+2"]
[EndTime "13:33:00 PDT"]
[Termination "GMHess won by resignation"]

1. b4 {[%clk 0:03:01.9]} 1... c6 {[%clk 0:03:00]} 2. e3 {[%clk 0:03:02.2]} 2...
e5 {[%clk 0:02:59.4]} 3. a3 {[%clk 0:03:02.4]} 3... Nf6 {[%clk 0:02:57.7]} 4.
Bb2 {[%clk 0:03:03.7]} 4... Qc7 {[%clk 0:02:57.2]} 5. g4 {[%clk 0:03:04.3]} 5...
d5 {[%clk 0:02:57.7]} 6. g5 {[%clk 0:03:05.4]} 6... Ne4 {[%clk 0:02:47.9]} 7. h4
{[%clk 0:03:06]} 7... Nd7 {[%clk 0:02:49.4]} 8. d3 {[%clk 0:03:06]} 8... Nd6
{[%clk 0:02:49.8]} 9. c4 {[%clk 0:03:07.6]} 9... dxc4 {[%clk 0:02:23.7]} 10.
dxc4 {[%clk 0:03:09.5]} 10... c5 {[%clk 0:02:22]} 11. Nc3 {[%clk 0:03:07.6]}
11... Nb6 {[%clk 0:01:34.5]} 12. Nd5 {[%clk 0:03:07.9]} 12... Nxd5 {[%clk
0:01:35.5]} 13. cxd5 {[%clk 0:03:09.8]} 13... cxb4 {[%clk 0:01:30.6]} 14. axb4
{[%clk 0:03:10.8]} 14... Qb6 {[%clk 0:01:22.5]} 15. Qb3 {[%clk 0:03:09.5]} 15...
Ne4 {[%clk 0:01:16]} 16. Ba3 {[%clk 0:02:30.8]} 16... a5 {[%clk 0:00:46.8]} 17.
b5 {[%clk 0:02:23.9]} 17... a4 {[%clk 0:00:42.2]} 18. Qb2 {[%clk 0:02:01.2]}
18... Qa5+ {[%clk 0:00:30.6]} 19. Ke2 {[%clk 0:01:59.2]} 19... Nc3+ {[%clk
0:00:25]} 20. Kf3 {[%clk 0:01:58.6]} 20... Bf5 {[%clk 0:00:21]} 21. Kg2 {[%clk
0:01:53.1]} 21... Rc8 {[%clk 0:00:14]} 22. Nh3 {[%clk 0:01:39.9]} 22... Be4+
{[%clk 0:00:08.8]} 23. f3 {[%clk 0:01:40.9]} 23... Bxd5 {[%clk 0:00:10.2]} 24.
e4 {[%clk 0:01:42.2]} 24... Bb3 {[%clk 0:00:11.1]} 25. Bd3 {[%clk 0:01:42.9]}
25... Bxa3 {[%clk 0:00:11.6]} 26. Rxa3 {[%clk 0:01:42.9]} 26... Qb4 {[%clk
0:00:06.4]} 27. Nf2 {[%clk 0:01:35.1]} 27... O-O {[%clk 0:00:06.9]} 28. Ng4
{[%clk 0:01:36.3]} 28... Nxb5 {[%clk 0:00:07]} 29. Qxe5 {[%clk 0:01:32.2]} 29...
Nxa3 {[%clk 0:00:05.8]} 30. Nh6+ {[%clk 0:01:31.2]} 30... Kh8 {[%clk 0:00:04.7]}
31. Qf5 {[%clk 0:01:32.3]} 31... Qd2+ {[%clk 0:00:05.5]} 32. Kg3 {[%clk
0:01:33]} 32... Qxd3 {[%clk 0:00:07]} 33. Ng4 {[%clk 0:01:28]} 33... Qd6+ {[%clk
0:00:07.1]} 34. Kh3 {[%clk 0:01:25]} 34... Be6 {[%clk 0:00:07.7]} 0-1

[Event "*** Titled Tuesday Blitz"]
[Site "Chess.com"]
[Date "2018.08.07"]
[Round "3"]
[White "GMCanty"]
[Black "GameOverBro"]
[Result "1-0"]
[WhiteElo "2245"]
[BlackElo "2377"]
[TimeControl "180+2"]
[EndTime "13:33:02 PDT"]
[Termination "GMCanty won by checkmate"]

1. e4 {[%clk 0:03:01.9]} 1... d6 {[%clk 0:02:59.7]} 2. d4 {[%clk 0:03:02.5]}
2... Nf6 {[%clk 0:03:00.7]} 3. Nc3 {[%clk 0:03:03.8]} 3... e5 {[%clk 0:03:01.7]}
4. Nf3 {[%clk 0:03:04.8]} 4... Nbd7 {[%clk 0:03:02.5]} 5. Bc4 {[%clk 0:03:04.8]}
5... Be7 {[%clk 0:03:04]} 6. h3 {[%clk 0:03:03.6]} 6... c6 {[%clk 0:03:05.3]} 7.
a4 {[%clk 0:03:04.1]} 7... a5 {[%clk 0:03:06.2]} 8. Be3 {[%clk 0:02:54.2]} 8...
Qc7 {[%clk 0:03:07.5]} 9. Qe2 {[%clk 0:02:54.2]} 9... h6 {[%clk 0:03:08.5]} 10.
g4 {[%clk 0:02:54.7]} 10... Nf8 {[%clk 0:03:09.3]} 11. O-O-O {[%clk 0:02:12]}
11... Ng6 {[%clk 0:03:05.3]} 12. Rdg1 {[%clk 0:01:59.1]} 12... Bd7 {[%clk
0:02:59]} 13. g5 {[%clk 0:01:57.6]} 13... Nh5 {[%clk 0:02:51.1]} 14. Nxe5 {[%clk
0:01:03.9]} 14... Nxe5 {[%clk 0:02:46.3]} 15. dxe5 {[%clk 0:01:03.1]} 15... hxg5
{[%clk 0:02:43.7]} 16. exd6 {[%clk 0:01:02.1]} 16... Bxd6 {[%clk 0:02:22.2]} 17.
Kb1 {[%clk 0:01:00.3]} 17... Nf4 {[%clk 0:02:21.7]} 18. Qf3 {[%clk 0:00:53.7]}
18... f6 {[%clk 0:01:59.3]} 19. h4 {[%clk 0:00:43.9]} 19... O-O-O {[%clk
0:01:59.5]} 20. hxg5 {[%clk 0:00:43.7]} 20... Rxh1 {[%clk 0:02:01.4]} 21. Rxh1
{[%clk 0:00:44.9]} 21... fxg5 {[%clk 0:02:02.5]} 22. Rg1 {[%clk 0:00:44.6]}
22... g4 {[%clk 0:02:02.5]} 23. Qd1 {[%clk 0:00:37.7]} 23... g5 {[%clk
0:02:00.7]} 24. Qe1 {[%clk 0:00:33.5]} 24... Bb4 {[%clk 0:01:59.6]} 25. Bd2
{[%clk 0:00:32.6]} 25... Kb8 {[%clk 0:02:00.4]} 26. Ne2 {[%clk 0:00:32.8]} 26...
Bxd2 {[%clk 0:01:58.7]} 27. Qxd2 {[%clk 0:00:34.7]} 27... Be6 {[%clk 0:01:59.9]}
28. Qc3 {[%clk 0:00:33.3]} 28... Bc8 {[%clk 0:01:56.2]} 29. Nxf4 {[%clk
0:00:30.6]} 29... gxf4 {[%clk 0:01:58.1]} 30. e5 {[%clk 0:00:30.8]} 30... Qb6
{[%clk 0:01:53]} 31. e6 {[%clk 0:00:28.9]} 31... Qxf2 {[%clk 0:01:49.4]} 32.
Qe5+ {[%clk 0:00:29.7]} 32... Ka8 {[%clk 0:01:45.2]} 33. Qxa5+ {[%clk 0:00:30]}
33... Qa7 {[%clk 0:01:46.5]} 34. Qxd8 {[%clk 0:00:29.9]} 34... Qxg1+ {[%clk
0:01:47.2]} 35. Ka2 {[%clk 0:00:31.3]} 35... Ka7 {[%clk 0:01:26.6]} 36. e7
{[%clk 0:00:29.1]} 36... Qc5 {[%clk 0:01:27.2]} 37. Bb3 {[%clk 0:00:26.1]} 37...
g3 {[%clk 0:01:23.6]} 38. e8=Q {[%clk 0:00:27.2]} 38... g2 {[%clk 0:01:25]} 39.
Qxc8 {[%clk 0:00:27.6]} 39... g1=Q {[%clk 0:01:26.4]} 40. Qa8+ {[%clk
0:00:28.7]} 40... Kb6 {[%clk 0:01:27]} 41. Qed8# {[%clk 0:00:30]} 1-0

[Event "*** Titled Tuesday Blitz"]
[Site "Chess.com"]
[Date "2018.08.07"]
[Round "3"]
[White "Zhigalko_Sergei"]
[Black "gena217"]
[Result "1-0"]
[WhiteElo "2867"]
[BlackElo "2709"]
[TimeControl "180+2"]
[EndTime "13:33:16 PDT"]
[Termination "Zhigalko_Sergei won by resignation"]

1. e4 {[%clk 0:03:01.4]} 1... c6 {[%clk 0:03:00.2]} 2. d4 {[%clk 0:03:02.6]}
2... d5 {[%clk 0:03:02.1]} 3. e5 {[%clk 0:03:04]} 3... Bf5 {[%clk 0:03:02.7]} 4.
Nf3 {[%clk 0:03:05.5]} 4... e6 {[%clk 0:03:04.1]} 5. Be2 {[%clk 0:03:06.9]} 5...
Ne7 {[%clk 0:03:05.7]} 6. c3 {[%clk 0:03:06.4]} 6... Nd7 {[%clk 0:03:03.7]} 7.
O-O {[%clk 0:03:06.8]} 7... Nc8 {[%clk 0:03:02.2]} 8. Nbd2 {[%clk 0:03:04.5]}
8... Be7 {[%clk 0:03:02]} 9. Re1 {[%clk 0:03:05.6]} 9... O-O {[%clk 0:03:02.6]}
10. Nf1 {[%clk 0:03:06.9]} 10... f6 {[%clk 0:02:50.5]} 11. exf6 {[%clk
0:03:03.5]} 11... Bxf6 {[%clk 0:02:47.8]} 12. Ng3 {[%clk 0:03:04.2]} 12... Nd6
{[%clk 0:02:21.1]} 13. Bd3 {[%clk 0:03:04.2]} 13... Bg4 {[%clk 0:01:52.3]} 14.
Bf4 {[%clk 0:02:19.4]} 14... Nf7 {[%clk 0:01:33.6]} 15. Qc2 {[%clk 0:01:26.1]}
15... h6 {[%clk 0:01:16.8]} 16. Ne5 {[%clk 0:01:10.9]} 16... Nfxe5 {[%clk
0:01:08.7]} 17. dxe5 {[%clk 0:01:03.6]} 17... Bg5 {[%clk 0:01:07.1]} 18. Bd2
{[%clk 0:01:02.5]} 18... Bxd2 {[%clk 0:00:36.2]} 19. Qxd2 {[%clk 0:01:04.4]}
19... Qh4 {[%clk 0:00:37.6]} 20. Re3 {[%clk 0:01:03.5]} 20... Rf4 {[%clk
0:00:35.6]} 21. f3 {[%clk 0:00:48.4]} 21... Bh5 {[%clk 0:00:36]} 22. Ne2 {[%clk
0:00:50]} 22... Rf7 {[%clk 0:00:34.1]} 23. Nd4 {[%clk 0:00:51.5]} 23... Qe7
{[%clk 0:00:31.4]} 24. b4 {[%clk 0:00:41]} 24... Rff8 {[%clk 0:00:29.5]} 25. Bc2
{[%clk 0:00:40.1]} 25... c5 {[%clk 0:00:24.5]} 26. Nb5 {[%clk 0:00:35.9]} 26...
a6 {[%clk 0:00:21.2]} 27. Nd6 {[%clk 0:00:36.8]} 27... Nxe5 {[%clk 0:00:20.9]}
28. Rxe5 {[%clk 0:00:38.7]} 1-0

[Event "*** Titled Tuesday Blitz"]
[Site "Chess.com"]
[Date "2018.08.07"]
[Round "3"]
[White "Stormeman100100"]
[Black "CookiesAndIceCream"]
[Result "1-0"]
[WhiteElo "2137"]
[BlackElo "2250"]
[TimeControl "180+2"]
[EndTime "13:33:17 PDT"]
[Termination "Stormeman100100 won by resignation"]

1. e4 {[%clk 0:03:01.2]} 1... e5 {[%clk 0:03:01.1]} 2. Nf3 {[%clk 0:03:01]} 2...
Nc6 {[%clk 0:03:02.6]} 3. Bc4 {[%clk 0:03:01.5]} 3... Bc5 {[%clk 0:03:04]} 4. c3
{[%clk 0:03:00.9]} 4... Nf6 {[%clk 0:03:05.3]} 5. d3 {[%clk 0:03:01.3]} 5... d6
{[%clk 0:03:06.4]} 6. O-O {[%clk 0:03:01.4]} 6... a6 {[%clk 0:03:07.8]} 7. a4
{[%clk 0:03:00.8]} 7... Ba7 {[%clk 0:03:08.5]} 8. Na3 {[%clk 0:03:00]} 8... Ne7
{[%clk 0:03:08.6]} 9. Nc2 {[%clk 0:02:58.9]} 9... O-O {[%clk 0:03:07.8]} 10. Be3
{[%clk 0:02:59.2]} 10... Ng6 {[%clk 0:03:08.1]} 11. Bxa7 {[%clk 0:02:56.7]}
11... Rxa7 {[%clk 0:03:09.5]} 12. Ne3 {[%clk 0:02:57.2]} 12... a5 {[%clk
0:03:07.1]} 13. Qc2 {[%clk 0:02:55]} 13... Bg4 {[%clk 0:02:56.6]} 14. Nxg4
{[%clk 0:02:53.3]} 14... Nxg4 {[%clk 0:02:56]} 15. d4 {[%clk 0:02:47.3]} 15...
c6 {[%clk 0:02:45]} 16. Rad1 {[%clk 0:02:37.5]} 16... Qc7 {[%clk 0:02:34.4]} 17.
h3 {[%clk 0:02:20.5]} 17... Nf6 {[%clk 0:02:34.9]} 18. dxe5 {[%clk 0:02:18.3]}
18... dxe5 {[%clk 0:02:32.3]} 19. Rd2 {[%clk 0:02:19.3]} 19... Raa8 {[%clk
0:02:32.3]} 20. Rfd1 {[%clk 0:02:19.8]} 20... h6 {[%clk 0:02:28.6]} 21. Nh2
{[%clk 0:01:50.6]} 21... Rad8 {[%clk 0:02:28.8]} 22. Ng4 {[%clk 0:01:41.6]}
22... Nxg4 {[%clk 0:02:27.5]} 23. hxg4 {[%clk 0:01:42.3]} 23... Rxd2 {[%clk
0:02:11.7]} 24. Qxd2 {[%clk 0:01:42.3]} 24... Qe7 {[%clk 0:01:38]} 25. g3 {[%clk
0:01:31.9]} 25... Re8 {[%clk 0:01:27.6]} 26. Kg2 {[%clk 0:01:31.5]} 26... Nf8
{[%clk 0:01:24.1]} 27. Qd6 {[%clk 0:00:54.4]} 27... Qg5 {[%clk 0:01:19.1]} 28.
Qc7 {[%clk 0:00:36.1]} 28... Qxg4 {[%clk 0:01:04.7]} 29. Qxf7+ {[%clk
0:00:28.8]} 29... Kh7 {[%clk 0:01:04.9]} 30. Qxe8 {[%clk 0:00:18.7]} 30... Qxe4+
{[%clk 0:01:06.1]} 31. Kg1 {[%clk 0:00:15.2]} 31... Qxc4 {[%clk 0:01:00.4]} 32.
Qxf8 {[%clk 0:00:15.6]} 32... Qe2 {[%clk 0:01:01.4]} 33. Rd8 {[%clk 0:00:15.1]}
33... Qe1+ {[%clk 0:01:01.4]} 34. Kh2 {[%clk 0:00:15.9]} 1-0

[Event "*** Titled Tuesday Blitz"]
[Site "Chess.com"]
[Date "2018.08.07"]
[Round "3"]
[White "cool4chess"]
[Black "inegrepus"]
[Result "1-0"]
[WhiteElo "2102"]
[BlackElo "2183"]
[TimeControl "180+2"]
[EndTime "13:33:19 PDT"]
[Termination "cool4chess won by resignation"]

1. e4 {[%clk 0:03:01.9]} 1... e6 {[%clk 0:03:00.3]} 2. d4 {[%clk 0:03:00.9]}
2... d5 {[%clk 0:03:01.2]} 3. Nc3 {[%clk 0:03:02]} 3... dxe4 {[%clk 0:03:02.6]}
4. Nxe4 {[%clk 0:03:03.1]} 4... Nd7 {[%clk 0:03:04.3]} 5. Nf3 {[%clk 0:03:01.9]}
5... Ngf6 {[%clk 0:03:06]} 6. Bg5 {[%clk 0:03:02.2]} 6... h6 {[%clk 0:03:07]} 7.
Bxf6 {[%clk 0:02:57.9]} 7... Nxf6 {[%clk 0:03:03.5]} 8. Nxf6+ {[%clk 0:02:56.5]}
8... Qxf6 {[%clk 0:03:01.1]} 9. Ne5 {[%clk 0:02:57.5]} 9... Bd6 {[%clk
0:02:53.5]} 10. Nc4 {[%clk 0:02:20.4]} 10... Be7 {[%clk 0:02:46]} 11. c3 {[%clk
0:02:14.2]} 11... O-O {[%clk 0:02:46.6]} 12. Bd3 {[%clk 0:02:13]} 12... c5
{[%clk 0:02:40.6]} 13. dxc5 {[%clk 0:02:11.9]} 13... Bxc5 {[%clk 0:02:41.4]} 14.
O-O {[%clk 0:02:12.9]} 14... e5 {[%clk 0:02:20.4]} 15. Qc2 {[%clk 0:02:07.7]}
15... Bg4 {[%clk 0:02:11.6]} 16. Nd2 {[%clk 0:02:03.3]} 16... Bb6 {[%clk
0:01:58.5]} 17. Nc4 {[%clk 0:01:53.7]} 17... Bc7 {[%clk 0:01:56.1]} 18. Ne3
{[%clk 0:01:53.8]} 18... Be6 {[%clk 0:01:52.6]} 19. Be4 {[%clk 0:01:54]} 19...
Rab8 {[%clk 0:01:50]} 20. Nd5 {[%clk 0:01:49.4]} 20... Bxd5 {[%clk 0:01:45.8]}
21. Bxd5 {[%clk 0:01:51.3]} 21... Bb6 {[%clk 0:01:47]} 22. c4 {[%clk 0:01:48.6]}
22... Bd4 {[%clk 0:01:47.6]} 23. Rad1 {[%clk 0:01:49]} 23... Rfd8 {[%clk
0:01:48]} 24. b3 {[%clk 0:01:50]} 24... b6 {[%clk 0:01:49.3]} 25. Kh1 {[%clk
0:01:50.1]} 25... b5 {[%clk 0:01:40.8]} 26. Qe4 {[%clk 0:01:45.5]} 26... bxc4
{[%clk 0:01:41]} 27. Bxc4 {[%clk 0:01:47.4]} 27... g6 {[%clk 0:01:28.1]} 28. f4
{[%clk 0:01:42.9]} 28... Bb2 {[%clk 0:01:18.4]} 29. Rxd8+ {[%clk 0:01:34.9]}
29... Rxd8 {[%clk 0:01:06.7]} 30. fxe5 {[%clk 0:01:35.3]} 30... Rd4 {[%clk
0:00:48.8]} 31. Qe2 {[%clk 0:01:20.3]} 31... Qd8 {[%clk 0:00:43.3]} 32. Rxf7
{[%clk 0:01:09.1]} 32... Rxc4 {[%clk 0:00:35.6]} 33. Qxc4 {[%clk 0:01:05.5]}
33... Kh8 {[%clk 0:00:34.2]} 34. e6 {[%clk 0:01:00.4]} 34... Bg7 {[%clk
0:00:30.6]} 35. e7 {[%clk 0:00:59.7]} 35... Qd1+ {[%clk 0:00:30.8]} 36. Rf1
{[%clk 0:01:00.3]} 1-0

[Event "*** Titled Tuesday Blitz"]
[Site "Chess.com"]
[Date "2018.08.07"]
[Round "3"]
[White "albi1999"]
[Black "PulpanJ"]
[Result "0-1"]
[WhiteElo "2389"]
[BlackElo "2524"]
[TimeControl "180+2"]
[EndTime "13:33:32 PDT"]
[Termination "PulpanJ won by resignation"]

1. d4 {[%clk 0:03:01.4]} 1... Nf6 {[%clk 0:03:00.2]} 2. c4 {[%clk 0:03:01.8]}
2... e6 {[%clk 0:03:01.4]} 3. g3 {[%clk 0:03:03]} 3... d5 {[%clk 0:03:00.9]} 4.
Nf3 {[%clk 0:03:04]} 4... Be7 {[%clk 0:03:02.2]} 5. Bg2 {[%clk 0:03:05.4]} 5...
O-O {[%clk 0:03:04.1]} 6. O-O {[%clk 0:03:06.8]} 6... dxc4 {[%clk 0:03:05.4]} 7.
Qa4 {[%clk 0:03:08.1]} 7... a6 {[%clk 0:03:05.8]} 8. Qxc4 {[%clk 0:03:09.4]}
8... b5 {[%clk 0:03:06.9]} 9. Qc2 {[%clk 0:03:10.9]} 9... Bb7 {[%clk 0:03:08.3]}
10. Bd2 {[%clk 0:03:12.3]} 10... Ra7 {[%clk 0:03:09.7]} 11. Rc1 {[%clk
0:03:10.4]} 11... Be4 {[%clk 0:03:09.9]} 12. Qb3 {[%clk 0:03:01.4]} 12... Bd5
{[%clk 0:03:10.8]} 13. Qe3 {[%clk 0:02:55.7]} 13... Nbd7 {[%clk 0:03:10.9]} 14.
Ba5 {[%clk 0:02:54]} 14... Nb6 {[%clk 0:03:07.3]} 15. Bxb6 {[%clk 0:02:37.2]}
15... cxb6 {[%clk 0:03:06.3]} 16. Nc3 {[%clk 0:02:38.3]} 16... Bc6 {[%clk
0:03:05.4]} 17. Ne5 {[%clk 0:02:34.8]} 17... Bxg2 {[%clk 0:03:05]} 18. Kxg2
{[%clk 0:02:36.7]} 18... Rc7 {[%clk 0:03:04.9]} 19. Rd1 {[%clk 0:02:29.9]} 19...
b4 {[%clk 0:03:03.5]} 20. Ne4 {[%clk 0:02:28]} 20... Rc2 {[%clk 0:03:03.6]} 21.
Qd3 {[%clk 0:02:17]} 21... Qc8 {[%clk 0:02:37.6]} 22. Nxf6+ {[%clk 0:01:56.5]}
22... Bxf6 {[%clk 0:02:29.4]} 23. Qb3 {[%clk 0:01:25.7]} 23... a5 {[%clk
0:02:24.5]} 24. Nf3 {[%clk 0:01:05.9]} 24... Rxe2 {[%clk 0:02:21.9]} 25. Rac1
{[%clk 0:01:04.4]} 25... Qa6 {[%clk 0:02:18.7]} 26. Ng1 {[%clk 0:00:44.9]} 26...
Re4 {[%clk 0:02:16.1]} 27. Nf3 {[%clk 0:00:41.3]} 27... Qb7 {[%clk 0:02:16.3]}
28. Kg1 {[%clk 0:00:37.4]} 28... Re2 {[%clk 0:02:15.1]} 29. Kf1 {[%clk 0:00:37]}
29... Qa6 {[%clk 0:02:05.5]} 30. Kg2 {[%clk 0:00:36.9]} 30... g6 {[%clk
0:01:59.2]} 31. Ng1 {[%clk 0:00:34.9]} 31... Re4 {[%clk 0:01:58]} 32. Qf3 {[%clk
0:00:34.2]} 32... Qb7 {[%clk 0:01:58.6]} 33. Re1 {[%clk 0:00:33.5]} 33... Rxe1
{[%clk 0:01:59.6]} 34. Qxb7 {[%clk 0:00:31.7]} 34... Rxc1 {[%clk 0:02:00.6]} 35.
Qxb6 {[%clk 0:00:33.2]} 35... Rc2 {[%clk 0:02:02]} 36. d5 {[%clk 0:00:27]} 36...
Bd8 {[%clk 0:01:57.7]} 37. Qb5 {[%clk 0:00:23.8]} 37... exd5 {[%clk 0:01:57.4]}
38. Qxd5 {[%clk 0:00:24.9]} 38... Rxb2 {[%clk 0:01:57.6]} 39. Nf3 {[%clk
0:00:26.3]} 39... a4 {[%clk 0:01:54.9]} 40. Ne5 {[%clk 0:00:24.8]} 40... Bb6
{[%clk 0:01:50.8]} 41. Nd7 {[%clk 0:00:23.2]} 41... Rd8 {[%clk 0:01:37.3]} 42.
Nf6+ {[%clk 0:00:23.6]} 42... Kg7 {[%clk 0:01:38.3]} 43. Nh5+ {[%clk 0:00:20.8]}
43... Kh6 {[%clk 0:01:34.8]} 44. Qxf7 {[%clk 0:00:19.5]} 44... Rxf2+ {[%clk
0:01:35.7]} 45. Qxf2 {[%clk 0:00:18.4]} 45... Bxf2 {[%clk 0:01:37.6]} 0-1

[Event "*** Titled Tuesday Blitz"]
[Site "Chess.com"]
[Date "2018.08.07"]
[Round "3"]
[White "gkchesstiger"]
[Black "AdrianaNikolova"]
[Result "1-0"]
[WhiteElo "2769"]
[BlackElo "2418"]
[TimeControl "180+2"]
[EndTime "13:33:35 PDT"]
[Termination "gkchesstiger won by resignation"]

1. d4 {[%clk 0:03:01.9]} 1... d5 {[%clk 0:02:57.6]} 2. Bf4 {[%clk 0:03:02.6]}
2... Nf6 {[%clk 0:02:57]} 3. e3 {[%clk 0:03:03.3]} 3... c5 {[%clk 0:02:56.8]} 4.
Nd2 {[%clk 0:03:03.1]} 4... cxd4 {[%clk 0:02:57.9]} 5. exd4 {[%clk 0:03:03.8]}
5... Bg4 {[%clk 0:02:51.7]} 6. Ngf3 {[%clk 0:03:00]} 6... e6 {[%clk 0:02:51.5]}
7. c3 {[%clk 0:02:59.6]} 7... Bd6 {[%clk 0:02:51]} 8. Bb5+ {[%clk 0:02:59.7]}
8... Nc6 {[%clk 0:02:50.8]} 9. Bxd6 {[%clk 0:02:55.3]} 9... Qxd6 {[%clk
0:02:51]} 10. O-O {[%clk 0:02:51.2]} 10... Ne4 {[%clk 0:02:41.8]} 11. Qa4 {[%clk
0:02:43.3]} 11... O-O {[%clk 0:02:33.8]} 12. Nxe4 {[%clk 0:02:42.5]} 12... dxe4
{[%clk 0:02:34.2]} 13. Nd2 {[%clk 0:02:43.4]} 13... f5 {[%clk 0:02:28.2]} 14.
Nc4 {[%clk 0:02:43.1]} 14... Qc7 {[%clk 0:02:24.5]} 15. Bxc6 {[%clk 0:02:44]}
15... bxc6 {[%clk 0:02:24.3]} 16. Ne5 {[%clk 0:02:45.1]} 16... Rac8 {[%clk
0:02:10.6]} 17. Nxg4 {[%clk 0:02:43.5]} 17... fxg4 {[%clk 0:02:12.5]} 18. Rae1
{[%clk 0:02:43.6]} 18... Rf4 {[%clk 0:01:58.9]} 19. g3 {[%clk 0:02:42.4]} 19...
Rf6 {[%clk 0:01:46.5]} 20. Rxe4 {[%clk 0:02:42.5]} 20... h5 {[%clk 0:01:45.4]}
21. Qc4 {[%clk 0:02:42.2]} 21... Qf7 {[%clk 0:01:44.8]} 22. Qe2 {[%clk
0:01:58.7]} 22... c5 {[%clk 0:01:36.3]} 23. dxc5 {[%clk 0:01:58.2]} 23... Rxc5
{[%clk 0:01:38.2]} 24. c4 {[%clk 0:01:58.8]} 24... Rcf5 {[%clk 0:01:33.3]} 25.
b4 {[%clk 0:01:58.9]} 25... Rf3 {[%clk 0:01:28.3]} 26. c5 {[%clk 0:01:59.9]}
26... a6 {[%clk 0:01:26.7]} 27. c6 {[%clk 0:01:59.9]} 27... Qe7 {[%clk
0:01:24.6]} 28. Rc4 {[%clk 0:01:59.9]} 28... Qc7 {[%clk 0:01:24.3]} 29. a4
{[%clk 0:01:59.3]} 29... e5 {[%clk 0:01:22.3]} 30. Qe4 {[%clk 0:01:57.3]} 30...
Qb6 {[%clk 0:01:12.6]} 31. Qd5+ {[%clk 0:01:57.6]} 31... Kh7 {[%clk 0:01:12.6]}
32. Qc5 {[%clk 0:01:56.9]} 32... Qc7 {[%clk 0:01:02.8]} 33. b5 {[%clk
0:01:57.4]} 33... axb5 {[%clk 0:01:03.3]} 34. axb5 {[%clk 0:01:58.1]} 34... Rb3
{[%clk 0:01:02.1]} 35. Re4 {[%clk 0:01:55.3]} 35... Rf5 {[%clk 0:01:01.6]} 36.
Re3 {[%clk 0:01:53.1]} 36... Rb2 {[%clk 0:01:01.4]} 37. Re4 {[%clk 0:01:47.2]}
37... g6 {[%clk 0:01:00.4]} 38. Rb4 {[%clk 0:01:47.3]} 38... Rxb4 {[%clk
0:00:50.9]} 39. Qxb4 {[%clk 0:01:48.1]} 39... Qb6 {[%clk 0:00:46.3]} 40. Qe7+
{[%clk 0:01:48.2]} 40... Kg8 {[%clk 0:00:23.6]} 41. c7 {[%clk 0:01:48.6]} 41...
Rf8 {[%clk 0:00:24.8]} 42. Qxe5 {[%clk 0:01:43]} 42... Qb7 {[%clk 0:00:14.5]}
43. Rc1 {[%clk 0:01:38.9]} 43... Qf3 {[%clk 0:00:11.3]} 44. Qe3 {[%clk
0:01:39.6]} 44... Qf5 {[%clk 0:00:11.1]} 45. b6 {[%clk 0:01:38.9]} 1-0

[Event "*** Titled Tuesday Blitz"]
[Site "Chess.com"]
[Date "2018.08.07"]
[Round "3"]
[White "MITerryble"]
[Black "GMG"]
[Result "1-0"]
[WhiteElo "2771"]
[BlackElo "2746"]
[TimeControl "180+2"]
[EndTime "13:33:39 PDT"]
[Termination "MITerryble won by resignation"]

1. d4 {[%clk 0:03:01.8]} 1... f5 {[%clk 0:03:00]} 2. Bg5 {[%clk 0:03:00.4]} 2...
h6 {[%clk 0:02:59.2]} 3. Bh4 {[%clk 0:03:00.5]} 3... g5 {[%clk 0:03:00]} 4. Bg3
{[%clk 0:02:59.7]} 4... Nf6 {[%clk 0:03:00.4]} 5. e3 {[%clk 0:03:00.5]} 5... d6
{[%clk 0:02:59.3]} 6. Bc4 {[%clk 0:02:59.5]} 6... e6 {[%clk 0:02:55.9]} 7. Ne2
{[%clk 0:02:58.7]} 7... Nc6 {[%clk 0:02:56.4]} 8. h4 {[%clk 0:02:58.2]} 8... Rg8
{[%clk 0:02:53.2]} 9. hxg5 {[%clk 0:02:58.9]} 9... hxg5 {[%clk 0:02:55.1]} 10.
a3 {[%clk 0:02:53]} 10... Qe7 {[%clk 0:02:55.5]} 11. Nbc3 {[%clk 0:02:53]} 11...
Bd7 {[%clk 0:02:53.9]} 12. d5 {[%clk 0:02:52.7]} 12... exd5 {[%clk 0:02:42.2]}
13. Nxd5 {[%clk 0:02:53.4]} 13... Nxd5 {[%clk 0:02:42.8]} 14. Qxd5 {[%clk
0:02:50.1]} 14... Rg6 {[%clk 0:02:39.7]} 15. O-O-O {[%clk 0:02:28.1]} 15...
O-O-O {[%clk 0:02:35.2]} 16. Qf7 {[%clk 0:02:24.9]} 16... Qxf7 {[%clk
0:02:07.2]} 17. Bxf7 {[%clk 0:02:26.8]} 17... Rf6 {[%clk 0:02:08.3]} 18. Ba2
{[%clk 0:02:12.2]} 18... Bh6 {[%clk 0:02:09]} 19. Kb1 {[%clk 0:02:09.6]} 19...
Rh8 {[%clk 0:02:09.3]} 20. Rh2 {[%clk 0:02:04.9]} 20... Rff8 {[%clk 0:02:08.9]}
21. Rdh1 {[%clk 0:02:04.7]} 21... Bg7 {[%clk 0:02:09.5]} 22. Rh7 {[%clk
0:02:00.2]} 22... Bf6 {[%clk 0:02:05]} 23. R1h6 {[%clk 0:01:51.4]} 23... Rxh7
{[%clk 0:01:57.1]} 24. Rxh7 {[%clk 0:01:53.2]} 24... Rh8 {[%clk 0:01:58.2]} 25.
Rxh8+ {[%clk 0:01:54.3]} 25... Bxh8 {[%clk 0:02:00.1]} 26. c3 {[%clk 0:01:46.3]}
26... Kd8 {[%clk 0:01:57.4]} 27. Nd4 {[%clk 0:01:47.1]} 27... Nxd4 {[%clk
0:01:56.2]} 28. exd4 {[%clk 0:01:37.3]} 28... f4 {[%clk 0:01:55.5]} 29. Bh2
{[%clk 0:01:38.4]} 29... Bf5+ {[%clk 0:01:53.4]} 30. Kc1 {[%clk 0:01:39]} 30...
Ke7 {[%clk 0:01:52.4]} 31. Bb1 {[%clk 0:01:38.6]} 31... Bxb1 {[%clk 0:01:52.8]}
32. Kxb1 {[%clk 0:01:40.5]} 32... Ke6 {[%clk 0:01:54.3]} 33. f3 {[%clk
0:01:41.5]} 33... c5 {[%clk 0:01:42.5]} 34. dxc5 {[%clk 0:01:42.2]} 34... dxc5
{[%clk 0:01:44.4]} 35. Bg1 {[%clk 0:01:42.9]} 35... Kd5 {[%clk 0:01:45.7]} 36.
Kc2 {[%clk 0:01:42.3]} 36... b6 {[%clk 0:01:42.4]} 37. b3 {[%clk 0:01:36.4]}
37... c4 {[%clk 0:01:43.2]} 38. b4 {[%clk 0:01:37.4]} 38... Bf6 {[%clk
0:01:43.1]} 39. a4 {[%clk 0:01:38.1]} 39... Bd8 {[%clk 0:01:31]} 40. b5 {[%clk
0:01:33.1]} 40... Ke6 {[%clk 0:01:23.1]} 41. Bd4 {[%clk 0:01:31.7]} 41... Bf6
{[%clk 0:01:22.2]} 42. Bf2 {[%clk 0:01:17.6]} 42... Kd5 {[%clk 0:01:19.3]} 43.
Kd2 {[%clk 0:01:16]} 43... Be7 {[%clk 0:01:19.6]} 44. Kc2 {[%clk 0:01:14.9]}
44... Bc5 {[%clk 0:01:19.7]} 45. Bxc5 {[%clk 0:01:14.7]} 45... bxc5 {[%clk
0:00:53.7]} 46. a5 {[%clk 0:01:12.1]} 46... Kd6 {[%clk 0:00:54.7]} 47. Kd2
{[%clk 0:01:11.7]} 47... Kc7 {[%clk 0:00:45.6]} 48. Ke2 {[%clk 0:01:12.6]} 1-0